Cogmind - Beta 10.2 @@@ ROGUE MODE // 2020.11.04 @ 19:11:26 // Halloween2020/ForbiddenLore Player: blelm Result: Destroyed by Enhanced Grunt with Neutron Cannon Performance ------------- Evolutions (3) 1500 Regions Visited (14) 2800 Robots Destroyed (207) 1035 Value Destroyed (7836) 7836 Prototype IDs (28) 560 Alien Tech Used (0) 0 Bonus (3086) 3086 TOTAL SCORE: 16817 Bonus ------- High Alert Combat Kills 1237 Follower Combat Kills 149 Entered Garrisons 400 Used RIF Installer 1000 Aligned with FarCom 300 Cogmind --------- Core Integrity 0/700 Matter 270/300 Energy 175/325 System Corruption 10% Temperature Cool (6) Movement Hovering (230) Ox3 Location -7/Data Miner Parts ------- > --- POWER (1) -------- Antimatter Reactor > --- PROPULSION (3) --- Cooled Airjet > --- UTILITY (7) ------ Large Storage Unit Large Storage Unit Advanced Terrain Scan Processor Hacking Suite Hacking Suite > --- WEAPON (2) ------- Longsword +1 > --- INVENTORY (16) --- Combat Airjet High-capacity Matter Pod (200) Long-range Terrain Scanner Makeshift System Shield Relay Coupler [NC] (28) Relay Coupler [NC] (25) Relay Coupler [Behemoth] (9) Coil Gun Coil Gun Remote Datajack Peak State ------------ > --- POWER ------------ Light Nuclear Core > --- PROPULSION ------- Combat Airjet Combat Airjet Combat Airjet > --- UTILITY ---------- Large Storage Unit Large Storage Unit Precision Energy Filter Microactuators Hacking Suite Hacking Suite System Shield > --- WEAPON ----------- Coil Gun Longsword +1 > --- INVENTORY -------- Light Angular Momentum Engine Cooled Airjet Combat Airjet Improved Cooling System High-capacity Matter Pod Long-range Terrain Scanner Advanced Terrain Scan Processor Hardened Medium Armor Plating Improved Medium Armor Plating Relay Coupler [NC] Relay Coupler [NC] Relay Coupler [Behemoth] Coil Gun Coil Gun Heavy Rocket Launcher Remote Datajack [Rating: 59] Favorites ----------- Power Deuterium Engine Engine Deuterium Engine Power Core Light Nuclear Core Reactor Antimatter Reactor Propulsion Armored Treads Treads Armored Treads Leg Aluminum Leg Wheel Compact Wheel Hover Unit Combat Airjet Utility High-capacity Storage Unit Device Improved Heat Sink Storage High-capacity Storage Unit Processor Advanced Terrain Scan Processor Hackware Hacking Suite Protection Hardened Medium Armor Plating Weapon Improved EM Shotgun Energy Gun Improved EM Shotgun Energy Cannon Heavy Plasma Cannon Ballistic Gun Coil Gun Launcher Missile Launcher Special Weapon Remote Datajack Impact Weapon Powered Hammer Slashing Weapon Longsword +1 Build | -11 -10 -10 -9 -9 -9 -8 -8 -8 -8 -8 -7 -7 -7 -7 ------- Run | Scr Mat Min Mat Min Exi Min Mat Gar Mat Gar Fac Low Low Dat Slots Evolved 6 | . . . 2 . . . 2 . . . 2 . . . Power . | . . . . . . . . . . . . . . . Propulsion 1 | . . . 1 . . . . . . . . . . . Utility 5 | . . . 1 . . . 2 . . . 2 . . . Weapon . | . . . . . . . . . . . . . . . Parts Attached 196 | 2 1 3 17 2 3 . 11 18 26 25 63 11 3 11 Power 10 | . . 1 1 . . . . 1 . . 3 . 1 3 Engine 5 | . . 1 1 . . . . 1 . . 1 . 1 . Core 3 | . . . . . . . . . . . 2 . . 1 Reactor 2 | . . . . . . . . . . . . . . 2 Propulsion 42 | 2 . . 4 . . . 2 3 8 5 16 . . 2 Treads 26 | 1 . . 4 . . . 2 3 5 5 6 . . . Leg . | . . . . . . . . . . . . . . . Wheel 6 | 1 . . . . . . . . . . 5 . . . Hover 10 | . . . . . . . . . 3 . 5 . . 2 Flight . | . . . . . . . . . . . . . . . Utility 56 | . . 1 7 . 3 . 4 4 5 8 14 5 1 4 Device 6 | . . . . . . . . . . 2 1 2 . 1 Storage 12 | . . . 5 . 3 . . . . 2 2 . . . Processor 2 | . . . . . . . . 1 . . . 1 . . Hackware 5 | . . . . . . . . . . . 4 . 1 . Protection 31 | . . 1 2 . . . 4 3 5 4 7 2 . 3 Artifact . | . . . . . . . . . . . . . . . Weapon 88 | . 1 1 5 2 . . 5 10 13 12 30 6 1 2 Energy Gun 6 | . . . 3 1 . . 2 . . . . . . . Energy Cannon 11 | . . . . . . . 1 1 1 2 5 . . 1 Ballistic Gun 36 | . 1 1 2 . . . 1 5 9 6 11 . . . Ballistic Cannon . | . . . . . . . . . . . . . . . Launcher 15 | . . . . . . . 1 4 . 4 2 2 1 1 Special Weapon 1 | . . . . . . . . . . . 1 . . . Impact Weapon 1 | . . . . 1 . . . . . . . . . . Slashing Weapon 18 | . . . . . . . . . 3 . 11 4 . . Piercing Weapon . | . . . . . . . . . . . . . . . Special Melee Weapon . | . . . . . . . . . . . . . . . Unidentified Prototypes 5 | . . . 1 . . . . . 2 . 1 1 . . Parts Lost 40 | . . 1 1 . . . 3 4 1 8 9 . 1 12 Power 7 | . . 1 . . . . . 1 . . 1 . 1 3 Propulsion 17 | . . . 1 . . . 1 2 1 4 5 . . 3 Utility 6 | . . . . . . . . 1 . 1 . . . 4 Weapon 10 | . . . . . . . 2 . . 3 3 . . 2 Highest Loss Streak 12 | . . 1 1 . . . 1 1 1 6 5 . 1 12 Average Slot Usage (%) 99 | . 85 95 100 100 99 100 99 99 99 99 98 100 99 78 Engine 8 | . 14 14 11 11 11 11 9 8 9 9 5 . 6 3 Treads 22 | . 14 14 29 33 33 33 26 27 26 26 13 . . . Wheel 1 | . 14 14 3 . . . . . . . 3 . . . Hover 2 | . . . . . . . . . . . 5 23 23 16 Storage 23 | . 14 14 22 22 30 33 27 27 27 26 21 15 15 15 Hackware 6 | . . . . . . . . . . . 19 23 23 19 Protection 12 | . . 9 11 11 2 . 18 17 18 15 9 3 . 2 Energy Gun 6 | . . . 16 20 22 22 15 . . . . . . . Ballistic Gun 8 | . 28 28 5 . . . 2 12 14 8 8 7 . . Launcher 1 | . . . . . . . . 4 . 4 . . 7 2 Slashing Weapon 1 | . . . . . . . . . 2 . 3 6 7 7 Naked Turns . | . . . . . . . . . . . . . . . Heaviest Build 139 | 12 13 17 87 87 111 111 133 135 131 137 139 55 53 53 Greatest Support 83 | 16 16 16 60 60 60 60 60 60 60 80 83 66 66 66 Greatest Overweight (x) 7 | . . 1 5 1 1 1 2 2 3 3 7 . . 3 Average Overweight (x) 1 | . . . 1 1 1 1 2 2 2 1 1 . . . Largest Inventory Capacity 28 | 6 6 6 20 20 28 28 28 28 28 28 28 16 16 16 Average Capacity 24 | 6 6 6 17 20 25 28 28 28 28 27 25 16 16 16 Most Carried 28 | 6 3 6 20 20 24 24 28 28 28 28 28 16 16 16 Average Carried 23 | 3 3 4 17 19 22 24 26 26 27 26 24 16 15 13 Final Capacity 28 | 6 6 6 20 20 28 28 28 28 28 28 16 16 16 16 Final Carried 28 | 3 3 6 20 20 24 24 27 28 28 27 16 16 16 10 Class Distribution -------------------- 44% | Hauler-Mutant 36% | Bothacker-Mutant 10% | Hacker-Mutant 6% | Mutant Dominant Class ---------------- Mutant | -10/Materials Mutant | -10/Mines Hauler-Mutant | -9/Materials Hauler-Mutant | -9/Mines Hauler-Mutant | -9/Exiles Hauler-Mutant | -8/Mines Hauler-Mutant | -8/Materials Hauler-Mutant | -8/Garrison Bothacker-Mutant | -8/Materials Bothacker-Mutant | -8/Garrison Bothacker-Mutant | -7/Factory Hacker-Mutant | -7/Lower Caves Hacker-Mutant | -7/Lower Caves Hacker-Mutant | -7/Data Miner Resources | -11 -10 -10 -9 -9 -9 -8 -8 -8 -8 -8 -7 -7 -7 -7 ----------- Run | Scr Mat Min Mat Min Exi Min Mat Gar Mat Gar Fac Low Low Dat Matter Collected 4942 | 239 63 194 391 20 20 20 222 662 475 583 1679 194 136 44 Remotely . | . . . . . . . . . . . . . . . Salvage Created 7384 | 73 135 312 1186 156 . 80 985 724 520 598 2035 320 56 204 Parts 392 | 1 9 20 58 11 . 9 59 42 34 35 94 4 5 11 Haulers Intercepted 12 | . . . 3 . . . 4 . 2 . 2 1 . . Recyclers Shooed 8 | 2 . 2 1 . . . . . 2 . 1 . . . Parts Field Recycled . | . . . . . . . . . . . . . . . Retrieved Matter . | . . . . . . . . . . . . . . . Parts Self-Destructed 12 | . . . . . . . . . . . . 2 10 . Prevented . | . . . . . . . . . . . . . . . Kills | -11 -10 -10 -9 -9 -9 -8 -8 -8 -8 -8 -7 -7 -7 -7 ------- Run | Scr Mat Min Mat Min Exi Min Mat Gar Mat Gar Fac Low Low Dat Combat Hostiles Destroyed 160 | . 5 6 18 4 . 5 20 30 6 20 30 10 4 2 Melee 10 | . . . . . . . . . . . 5 2 1 2 Guns 89 | . 5 6 15 3 . 3 15 14 6 6 16 . . . Cannons 6 | . . . . . . . . . . 2 4 . . . AOE 54 | . . . 3 1 . 2 4 16 . 12 5 8 3 . Classes Destroyed 16 | 1 2 1 4 . . . 1 1 1 2 3 . . . Worker 10 | . . . 1 . . . 2 . 1 . 6 . . . Builder 2 | . . . . . . . . . 1 . 1 . . . Tunneler 1 | . . . . . . . . . . . 1 . . . Hauler 12 | . . . 3 . . . 4 . 2 . 2 1 . . Recycler 13 | 1 . 1 4 . . . . . 1 . 6 . . . Operator 2 | . . . 1 . . . 1 . . . . . . . Watcher 7 | . . . 1 . . . 4 . . . 2 . . . Swarmer 51 | . 3 2 7 1 . 5 10 13 . . 5 1 4 . Grunt 64 | . 2 2 7 3 . . 2 14 2 10 13 9 . . Brawler 3 | . . . . . . . . 1 . 2 . . . . Duelist 2 | . . . . . . . . . . 2 . . . . Protector 1 | . . . . . . . . . . . 1 . . . Sentry 23 | . . 2 4 . . . 7 . 2 4 4 . . . Hunter 6 | . . . . . . . 1 2 2 . 1 . . . Programmer 6 | . . . . . . . . . . . 6 . . . Behemoth 2 | . . . . . . . . . . 2 . . . . Enhanced Grunt 2 | . . . . . . . . . . . . . . 2 Best Kill Streak 6 | 1 5 2 4 2 . 3 5 4 3 5 5 6 4 1 Combat Bots Only 5 | . 5 2 4 2 . 3 4 4 2 5 4 5 4 1 Max Kills in Single Turn 4 | 1 1 1 2 1 . 1 2 4 2 2 3 2 3 1 Gunslinging 1 | . . . 1 . . . 1 . . . . . . . Exploded 4 | . . . 1 1 . 1 2 4 . 2 3 2 3 . Melee 1 | . . . . . . . . . . . 1 1 1 1 Uniques/NPCs Destroyed . | . . . . . . . . . . . . . . . Combat | -11 -10 -10 -9 -9 -9 -8 -8 -8 -8 -8 -7 -7 -7 -7 -------- Run | Scr Mat Min Mat Min Exi Min Mat Gar Mat Gar Fac Low Low Dat Damage Taken 10117 | . 178 404 660 119 . 224 808 620 764 1517 2095 223 124 2381 Core 1210 | . 27 69 56 10 . 19 70 50 97 97 201 39 13 462 Absorbed by Shields . | . . . . . . . . . . . . . . . Core Remaining (%) 70 | 100 . 61 . . . 78 . . . 42 . . . . Volleys Fired 423 | 7 11 29 51 9 . 10 59 59 29 58 93 7 1 . Largest 2 | 2 2 2 2 2 . 2 2 2 2 2 2 1 1 . Hottest 129 | 40 40 43 90 90 . 90 90 90 75 129 120 39 39 . Shots Fired 729 | 14 22 58 102 18 . 20 110 82 53 82 159 7 1 1 Gun 611 | 14 22 58 102 18 . 20 102 58 49 41 127 . . . Cannon 50 | . . . . . . . 3 5 4 16 22 . . . Launcher 62 | . . . . . . . 5 19 . 25 4 7 1 1 Special 6 | . . . . . . . . . . . 6 . . . Kinetic 422 | 14 22 58 40 . . . 13 58 49 41 127 . . . Thermal 37 | . . . . . . . 3 5 4 16 9 . . . Explosive 62 | . . . . . . . 5 19 . 25 4 7 1 1 Electromagnetic 202 | . . . 62 18 . 20 89 . . . 13 . . . Robot Hit Streak 20 | 2 11 11 19 9 . 5 20 14 16 10 20 6 7 . Robot Miss Streak 6 | 6 1 3 2 1 . 4 6 3 3 3 3 1 . . Penetration Max 1 | . . . . . . . . 1 1 . 1 . . . Secondary Targets 5 | . . 1 1 . . 1 2 . . . . . . . Max Gunslinging Chain 1 | . . 1 1 . . 1 1 . . . . . . . Shots Hit Robots 573 | 6 19 38 80 16 . 14 89 53 42 49 143 9 4 11 Core Hits 366 | 2 8 13 42 7 . 5 54 60 29 52 62 21 4 7 Critical Hits 7 | . . . . . . . . 2 . 2 3 . . . Critical Kills 3 | . . . . . . . . 2 . . 1 . . . Critical Parts Destroyed 3 | . . . . . . . . . . 1 2 . . . Melee Attacks 141 | . . . . 20 . . . . 7 . 89 4 8 13 Impact 20 | . . . . 20 . . . . . . . . . . Slashing 121 | . . . . . . . . . 7 . 89 4 8 13 Piercing . | . . . . . . . . . . . . . . . Sneak Attacks 11 | . . . . . . . . . . . 11 . . . Combat Hostiles 1 | . . . . . . . . . . . 1 . . . Follow-up Attacks . | . . . . . . . . . . . . . . . Damage Inflicted 19415 | 59 182 489 1409 267 . 129 1642 2641 857 3076 6279 1447 409 529 Guns 7925 | 59 182 469 1175 164 . 71 1171 726 805 731 2372 . . . Cannons 835 | . . . . . . . . . . 363 472 . . . Explosions 7135 | . . . 176 90 . 58 420 1915 . 1982 929 1292 273 . Melee 3292 | . . . . . . . . . . . 2472 155 136 529 Ramming 228 | . . 20 58 13 . . 51 . 52 . 34 . . . Kinetic 5924 | 59 182 469 434 . . . 146 726 805 731 2372 . . . Thermal 1479 | . . . 176 90 . 58 113 . . 363 679 . . . Explosive 6284 | . . . . . . . 307 1915 . 1982 515 1292 273 . Electromagnetic 2208 | . . . 741 164 . 71 1025 . . . 207 . . . Impact . | . . . . . . . . . . . . . . . Slashing 3292 | . . . . . . . . . . . 2472 155 136 529 Piercing . | . . . . . . . . . . . . . . . Highest Corruption 10 | . . . . . . . 1 1 6 6 10 10 10 10 Average Corruption 4 | . . . . . . . 1 1 5 6 6 10 10 10 Corruption Purged . | . . . . . . . . . . . . . . . Effects 193 | . . . . . . . . 13 29 39 82 17 10 3 Message Errors 54 | . . . . . . . . 7 7 6 24 4 4 2 Matter Fused 28 | . . . . . . . . . 4 10 11 2 1 . Heat Flow Errors 23 | . . . . . . . . . 6 4 10 2 1 . Energy Discharges 22 | . . . . . . . . 4 5 4 7 2 . . Parts Rejected 1 | . . . . . . . . . . 1 . . . . Data Loss (minor) 17 | . . . . . . . . 2 2 5 6 2 . . Data Loss (major) 8 | . . . . . . . . . 1 . 5 1 1 . Misfires 2 | . . . . . . . . . . 1 . . . 1 Misdirections 10 | . . . . . . . . . . . 6 2 2 . Targeting Errors 26 | . . . . . . . . . 4 7 12 2 1 . Weapon Failures 2 | . . . . . . . . . . 1 1 . . . Overload Shots . | . . . . . . . . . . . . . . . Overflow Damage 1194 | . . . 1 . . . 24 159 . 36 829 109 36 . Projectiles 52 | . . . . . . . . . . . 52 . . . Explosions 483 | . . . 1 . . . 24 159 . 36 165 62 36 . Melee 659 | . . . . . . . . . . . 612 47 . . Knockbacks 1 | . . . . . . . 1 . . . . . . . Impact 1 | . . . . . . . 1 . . . . . . . Kinetic . | . . . . . . . . . . . . . . . Secondary . | . . . . . . . . . . . . . . . Self-Inflicted Damage 318 | . . 10 68 . . . 28 29 . 113 25 . . 45 Shots 13 | . . . 3 . . . 2 1 . 5 1 . . 1 Rammed 24 | . . 4 8 2 . . 4 . 4 . 2 . . . Targets Rammed 30 | . . 4 10 2 . . 5 . 6 . 3 . . . Kicked . | . . . . . . . . . . . . . . . Crushed 6 | . . . 2 . . . 1 . 2 . 1 . . . Highest Temperature 424 | . 19 4 424 135 . 96 282 300 305 258 261 242 158 4 Average Temperature 73 | . 11 2 107 58 . 45 69 52 68 72 81 98 84 4 Received Heat Transfer 2244 | . 84 120 201 39 . . 180 234 36 306 648 84 12 300 Effects 5 | . . . 4 . . . . . 1 . . . . . Shutdowns 2 | . . . 1 . . . . . 1 . . . . . Interference 1 | . . . 1 . . . . . . . . . . . Matter Decay 2 | . . . 2 . . . . . . . . . . . Siege Activations . | . . . . . . . . . . . . . . . Robots Corrupted 1 | . . . . . . . 1 . . . . . . . Combat Hostiles 1 | . . . . . . . 1 . . . . . . . Parts Fried 14 | . . . 9 . . . 4 . . . 1 . . . Impact Corruptions . | . . . . . . . . . . . . . . . Robots Melted . | . . . . . . . . . . . . . . . Combat Hostiles . | . . . . . . . . . . . . . . . Parts Melted 3 | . . . . . . . 1 . . . 2 . . . Heat Transferred 1761 | . . . 100 150 . 100 200 . . 511 700 . . . Parts Sabotaged . | . . . . . . . . . . . . . . . Parts Stolen . | . . . . . . . . . . . . . . . Parts Stripped . | . . . . . . . . . . . . . . . Power Chain Reactions 9 | . . . 3 1 . 2 3 . . . . . . . Missiles Intercepted . | . . . . . . . . . . . . . . . Alert | -11 -10 -10 -9 -9 -9 -8 -8 -8 -8 -8 -7 -7 -7 -7 ------- Run | Scr Mat Min Mat Min Exi Min Mat Gar Mat Gar Fac Low Low Dat Peak Influence 1376 | 5 149 232 180 199 . 114 391 1376 672 887 1353 . . . Initial 670 | . 3 57 20 25 . . 44 213 670 204 465 . . . Average 476 | 1 90 144 79 73 . 60 169 861 360 650 673 . . . Maximum Alert Level 4 | . . 1 . . . . 1 4 2 3 4 . . . Low Security (%) 31 | 100 100 57 100 100 . 100 69 . 6 . . . . . Level 1 17 | . . 42 . . . . 30 13 77 12 8 . . . Level 2 25 | . . . . . . . . 23 16 41 57 . . . Level 3 15 | . . . . . . . . 27 . 46 23 . . . Level 4 9 | . . . . . . . . 36 . . 9 . . . Level 5 . | . . . . . . . . . . . . . . . High Security . | . . . . . . . . . . . . . . . Max Security . | . . . . . . . . . . . . . . . Squads Dispatched 24 | . . . 3 . . . 5 . . . 16 . . . Investigation 4 | . . . 2 . . . . . . . 2 . . . Extermination 6 | . . . . . . . . . . . 6 . . . Reinforcement 6 | . . . 1 . . . 2 . . . 3 . . . Assault 1 | . . . . . . . . . . . 1 . . . Garrison 7 | . . . . . . . 3 . . . 4 . . . Intercept . | . . . . . . . . . . . . . . . Construction Impeded . | . . . . . . . . . . . . . . . Haulers Reinforced . | . . . . . . . . . . . . . . . Stealth | -11 -10 -10 -9 -9 -9 -8 -8 -8 -8 -8 -7 -7 -7 -7 --------- Run | Scr Mat Min Mat Min Exi Min Mat Gar Mat Gar Fac Low Low Dat Distress Signals 12 | . . . 3 . . . 1 . 3 . 5 . . . Communications Jammed . | . . . . . . . . . . . . . . . Distress Signals . | . . . . . . . . . . . . . . . Times Spotted 244 | . 5 8 23 10 . 6 35 31 11 24 62 16 5 8 Peak Tracking Total 8 | . 5 3 5 4 . 3 3 5 4 4 6 8 4 4 Tactical Retreats 33 | . . 2 1 . . . 3 3 1 6 13 3 1 . Traps | -11 -10 -10 -9 -9 -9 -8 -8 -8 -8 -8 -7 -7 -7 -7 ------- Run | Scr Mat Min Mat Min Exi Min Mat Gar Mat Gar Fac Low Low Dat Traps Triggered 18 | . . . 1 . . . 3 4 . 6 4 . . . Indirectly . | . . . . . . . . . . . . . . . Trap Hack Attempts . | . . . . . . . . . . . . . . . Triggered . | . . . . . . . . . . . . . . . Disarmed . | . . . . . . . . . . . . . . . Reprogrammed . | . . . . . . . . . . . . . . . Reused . | . . . . . . . . . . . . . . . Traps Extracted . | . . . . . . . . . . . . . . . Installed . | . . . . . . . . . . . . . . . Triggered 1 | . . . . . . . 1 . . . . . . . Machines | -11 -10 -10 -9 -9 -9 -8 -8 -8 -8 -8 -7 -7 -7 -7 ---------- Run | Scr Mat Min Mat Min Exi Min Mat Gar Mat Gar Fac Low Low Dat Machines Disabled 27 | . . . 3 1 . . 2 5 . 3 12 . . 1 Max in Single Turn 8 | . . . 1 . . . 1 1 . 1 8 . . 1 Garrison Access 1 | . . . . . . . . . . . 1 . . . Garrison Relay 7 | . . . . . . . . 5 . 2 . . . . Machines Sabotaged . | . . . . . . . . . . . . . . . Garrisons Compromised . | . . . . . . . . . . . . . . . Overloaded Fab Kills . | . . . . . . . . . . . . . . . Fab Network Shutdowns 1 | . . . . . . . . . . . 1 . . . Hacking | -11 -10 -10 -9 -9 -9 -8 -8 -8 -8 -8 -7 -7 -7 -7 --------- Run | Scr Mat Min Mat Min Exi Min Mat Gar Mat Gar Fac Low Low Dat Machines Accessed 46 | . 3 . 5 2 2 . 11 . 6 . 15 1 1 . Terminals 32 | . 3 . 4 1 . . 10 . 4 . 10 . . . Fabricators 2 | . . . . . . . . . . . 2 . . . Repair Stations . | . . . . . . . . . . . . . . . Recycling Units 3 | . . . . . . . . . 1 . 2 . . . Scanalyzers 1 | . . . 1 . . . . . . . . . . . Garrison Access 3 | . . . . . . . 1 . 1 . 1 . . . Total Hacks 121 | . 8 . 14 3 2 . 32 . 15 . 45 1 1 . Successful 59 | . 3 . 9 1 2 . 15 . 6 . 21 1 1 . Failed 61 | . 4 . 5 2 . . 17 . 9 . 24 . . . Catastrophic 9 | . . . 1 1 . . 2 . . . 5 . . . Database Lockouts 1 | . 1 . . . . . . . . . . . . . Manual 69 | . 7 . 6 2 1 . 19 . 6 . 28 . . . Terminals 93 | . 8 . 10 2 . . 31 . 10 . 32 . . . Fabricators 7 | . . . . . . . . . . . 7 . . . Repair Stations . | . . . . . . . . . . . . . . . Recycling Units 9 | . . . . . . . . . 4 . 5 . . . Scanalyzers 4 | . . . 4 . . . . . . . . . . . Garrison Access 3 | . . . . . . . 1 . 1 . 1 . . . Terminal Hacks 33 | . 2 . 4 1 2 . 12 . 3 . 7 1 1 . Record 2 | . . . . . 1 . 1 . . . . . . . Part Schematic 2 | . . . . . . . 1 . . . 1 . . . Robot Analysis 5 | . 1 . 1 . . . 3 . . . . . . . Open Door 3 | . . . . 1 . . . . . . . 1 1 . Branch Access Points 2 | . . . 1 . . . . . . . 1 . . . Terminal Index 2 | . 1 . . . . . . . . . 1 . . . Unreport Threat 8 | . . . 1 . . . 1 . 2 . 4 . . . Locate Traps 3 | . . . . . . . 3 . . . . . . . Recall Reinforcements 1 | . . . . . . . 1 . . . . . . . Hauler Manifests 2 | . . . 1 . . . 1 . . . . . . . Zone Layout 2 | . . . . . . . 1 . 1 . . . . . EX-Prototype ID Bank 1 | . . . . . 1 . . . . . . . . . Fabricator Hacks 5 | . . . . . . . . . . . 5 . . . Load Schematic 2 | . . . . . . . . . . . 2 . . . Build 3 | . . . . . . . . . . . 3 . . . Repair Station Hacks . | . . . . . . . . . . . . . . . Recycling Unit Hacks 6 | . . . . . . . . . 1 . 5 . . . Retrieve Matter 3 | . . . . . . . . . . . 3 . . . Retrieve Components 3 | . . . . . . . . . 1 . 2 . . . Scanalyzer 4 | . . . 4 . . . . . . . . . . . Insert Component 2 | . . . 2 . . . . . . . . . . . Analyze 2 | . . . 2 . . . . . . . . . . . Garrison Access Hacks 3 | . . . . . . . 1 . 1 . 1 . . . Unlock Access 2 | . . . . . . . 1 . 1 . . . . . Seal Access 1 | . . . . . . . . . . . 1 . . . Unauthorized Hacks 8 | . 1 . 1 . . . 2 . 1 . 3 . . . Terminals 7 | . 1 . 1 . . . 2 . 1 . 2 . . . Botnet 5 | . . . 1 . . . 1 . 1 . 2 . . . Operators 2 | . 1 . . . . . 1 . . . . . . . Fabricators 1 | . . . . . . . . . . . 1 . . . Siphon 1 | . . . . . . . . . . . 1 . . . Repair Stations . | . . . . . . . . . . . . . . . Recycling Units . | . . . . . . . . . . . . . . . Scanalyzers . | . . . . . . . . . . . . . . . Garrison Access . | . . . . . . . . . . . . . . . Data Cores Recovered . | . . . . . . . . . . . . . . . Used . | . . . . . . . . . . . . . . . Hacking Detections 38 | . 3 . 5 1 . . 11 . 5 . 13 . . . Full Trace Events 5 | . . . 1 . . . 2 . . . 2 . . . Feedback Events . | . . . . . . . . . . . . . . . Feedback Blocked . | . . . . . . . . . . . . . . . Robot Schematics Acquired . | . . . . . . . . . . . . . . . Robots Built . | . . . . . . . . . . . . . . . Matter . | . . . . . . . . . . . . . . . Time . | . . . . . . . . . . . . . . . Total Robot Build Rating . | . . . . . . . . . . . . . . . Part Schematics Acquired 4 | . . . 2 . . . 1 . . . 1 . . . Parts Built 4 | . . . . . . . . . . . 4 . . . Matter 332 | . . . . . . . . . . . 332 . . . Time 142 | . . . . . . . . . . . 142 . . . Total Part Build Rating 20 | . . . . . . . . . . . 20 . . . Parts Repaired . | . . . . . . . . . . . . . . . Time . | . . . . . . . . . . . . . . . Parts Recycled . | . . . . . . . . . . . . . . . Recycled Matter . | . . . . . . . . . . . . . . . Retrieved Matter . | . . . . . . . . . . . . . . . Retrieved Components 20 | . . . . . . . . . 10 . 10 . . . Parts Scanalyzed 2 | . . . 2 . . . . . . . . . . . Part Schematics Acquired 2 | . . . 2 . . . . . . . . . . . Parts Damaged . | . . . . . . . . . . . . . . . Bothacking | -11 -10 -10 -9 -9 -9 -8 -8 -8 -8 -8 -7 -7 -7 -7 ------------ Run | Scr Mat Min Mat Min Exi Min Mat Gar Mat Gar Fac Low Low Dat Used RIF Installer 2 | . . . . . . . . 1 . 1 . . . . Structural Interface 1 | . . . . . . . . . . 1 . . . . Robots Hacked 1 | . . . . . . . . . . . 1 . . . Non-combat 1 | . . . . . . . . . . . 1 . . . Combat . | . . . . . . . . . . . . . . . Robot Hacks Applied 4 | . . . . . . . . . . . 4 . . . purge_threat 2 | . . . . . . . . . . . 2 . . . locate_traps 1 | . . . . . . . . . . . 1 . . . recall_investigation 1 | . . . . . . . . . . . 1 . . . Relay Couplers Released 30 | . . . . . . . . 22 . 8 . . . . Machine Destruction 30 | . . . . . . . . 22 . 8 . . . . Attached 1 | . . . . . . . . . . . 1 . . . Robots Rewired 6 | . . . . . . . . 6 . . . . . . Allies Hacked . | . . . . . . . . . . . . . . . Hacks Repelled . | . . . . . . . . . . . . . . . Allies | -11 -10 -10 -9 -9 -9 -8 -8 -8 -8 -8 -7 -7 -7 -7 -------- Run | Scr Mat Min Mat Min Exi Min Mat Gar Mat Gar Fac Low Low Dat Total Allies 12 | . . . . 6 . . . 6 . . . . . . Largest Group 6 | . . . . 3 1 . . 6 . . . . . . Highest-Rated Group 60 | . . . . 50 19 . . 60 . . . . . . Highest-Rated Ally 31 | . . . . 31 19 . . 15 . . . . . . Total Orders . | . . . . . . . . . . . . . . . Ally Attacks 63 | . . . . 44 . . . 19 . . . . . . Total Damage 884 | . . . . 596 . . . 288 . . . . . . Kills 14 | . . . . 12 . . . 2 . . . . . . Allies Corrupted . | . . . . . . . . . . . . . . . Allies Melted . | . . . . . . . . . . . . . . . Intel | -11 -10 -10 -9 -9 -9 -8 -8 -8 -8 -8 -7 -7 -7 -7 ------- Run | Scr Mat Min Mat Min Exi Min Mat Gar Mat Gar Fac Low Low Dat Robot Analysis Total 5 | . 1 . 1 . . . 3 . . . . . . . Derelict Logs Recovered 2 | . . 1 . . . . . . . . . . 1 . Drone Launches . | . . . . . . . . . . . . . . . Drone Recoveries . | . . . . . . . . . . . . . . . Exploration | -11 -10 -10 -9 -9 -9 -8 -8 -8 -8 -8 -7 -7 -7 -7 ------------- Run | Scr Mat Min Mat Min Exi Min Mat Gar Mat Gar Fac Low Low Dat Turns Passed 15782 | 46 201 542 1326 1020 772 215 2056 2702 1027 1117 4171 310 213 64 Spaces Moved 8141 | 23 152 391 634 479 402 98 814 1176 377 453 2533 344 244 21 Core . | . . . . . . . . . . . . . . . Treads 5169 | . . . 432 479 402 98 814 1176 377 453 938 . . . Legs . | . . . . . . . . . . . . . . . Wheels 1352 | 23 152 391 202 . . . . . . . 584 . . . Hover 1620 | . . . . . . . . . . . 1011 344 244 21 Flight . | . . . . . . . . . . . . . . . Fastest Speed 72 | 100 100 100 110 190 190 190 210 203 203 180 72 72 72 72 Average Speed 160 | 100 100 106 168 190 190 190 210 204 203 191 131 72 72 83 Slowest Speed 280 | 100 100 110 210 190 190 190 210 210 225 225 280 72 72 230 Overloaded Moves . | . . . . . . . . . . . . . . . Propulsion Burnouts . | . . . . . . . . . . . . . . . Robots Hopped . | . . . . . . . . . . . . . . . Cave-ins Triggered 1 | . . . . . . . . . 1 . . . . . Exploration Rate (%) 51 | 3 29 92 48 68 68 32 74 83 31 66 52 53 44 29 Regions Visited 14 Branch Regions 7 Pre-discovered Areas 2 | . . 1 . . 1 . . . . . . . . . Known Exits Taken 5 | . . 1 1 . . . 1 . 1 . 1 . . . Unknown Exits Taken 7 | 1 1 . . 1 1 1 . . . . . 1 1 . Scrap Searched 6 | . . 1 . 1 . . . . . . . 4 . . Spaces Dug 82 | . . . . . . . 3 . 11 11 53 1 2 1 Terrain Destroyed 593 | . . . 6 4 . 4 42 77 11 233 110 78 17 11 Melee 64 | . . . . . . . . . 7 . 53 1 2 1 Projectile 22 | . . . . . . . 3 1 4 5 9 . . . AOE 507 | . . . 6 4 . 4 39 76 . 228 48 77 15 10 Terrain Rammed . | . . . . . . . . . . . . . . . Walls Destroyed . | . . . . . . . . . . . . . . . Machines Disabled . | . . . . . . . . . . . . . . . Actions | -11 -10 -10 -9 -9 -9 -8 -8 -8 -8 -8 -7 -7 -7 -7 --------- Run | Scr Mat Min Mat Min Exi Min Mat Gar Mat Gar Fac Low Low Dat Total 9986 | 34 180 457 789 548 410 107 1044 1394 574 616 3114 395 271 53 Wait 743 | . 17 25 37 25 . . 142 21 106 44 285 23 13 5 Move 8128 | 22 151 390 633 478 401 97 814 1175 376 452 2532 343 243 21 Hop . | . . . . . . . . . . . . . . . Pick Up 103 | . . 4 25 6 4 . 10 16 5 15 15 1 2 . Fast Attach 35 | . . 2 2 . 1 . 1 . 6 7 8 4 . 4 Attach 47 | 2 . 1 4 . . . 5 6 1 6 16 . 1 5 Detach 7 | . . 1 . . . . . . . . 5 . . 1 Swap 114 | . 1 . 11 2 2 . 5 12 19 12 39 7 2 2 Drop 99 | 3 . 1 16 6 2 . 3 10 18 10 21 6 1 2 Fire 423 | 7 11 29 51 9 . 10 59 59 29 58 93 7 1 . Melee 141 | . . . . 20 . . . . 7 . 89 4 8 13 Ram 5 | . . 4 1 . . . . . . . . . . . Kick . | . . . . . . . . . . . . . . . Crush 25 | . . . 9 2 . . 5 . 6 . 3 . . . Escape Stasis 29 | . . . . . . . . 8 1 12 8 . . . Rewire 87 | . . . . . . . . 87 . . . . . . Trap . | . . . . . . . . . . . . . . . Miscellaneous . | . . . . . . . . . . . . . . . Route ------- -11/Scrapyard -10/Materials -10/Mines (discovered 2 exits: *Mat x2) -9/Materials (discovered 4 exits: *Mat / *Min x2 / *Sto) -9/Mines (discovered 2 exits: *Mat / *Exi) -9/Exiles -8/Mines -8/Materials (discovered 4 exits: *Fac x3 / Gar) -8/Garrison (discovered 3 exits: *Mat x3) -8/Materials -8/Garrison (discovered 2 exits: *Fac x2) -7/Factory (discovered 2 exits: *Low x2) -7/Lower Caves -7/Lower Caves -7/Data Miner (discovered 1 exit: [*Pro]) History --------- Turn | Location | Event 16 | -11/Scrapyard | Discovered new exit (range 1) 47 | -11/Scrapyard | Entered Materials 171 | -10/Materials | Discovered new exit (range 8) 188 | -10/Materials | Central database locked down 248 | -10/Materials | Entered Mines 251 | -10/Mines | Met a Derelict bent on vengeance 277 | -10/Mines | Discovered new exit (range 9) 318 | -10/Mines | Build established: Mutant 392 | -10/Mines | Identified exit to Materials 719 | -10/Mines | Learned location of Storage (-9) 790 | -10/Mines | Entered Materials 790 | -9/Materials | Evolved 2 slots: Propulsion x1, Utility x1 908 | -9/Materials | Identified exit to Mines 908 | -9/Materials | Identified exit to Storage 932 | -9/Materials | Met 8R-AWN 1387 | -9/Materials | Build established: Hauler-Mutant 1475 | -9/Materials | Discovered new exit (range 12) 2116 | -9/Materials | Entered Mines 2118 | -9/Mines | Followed 8R-AWN into the Mines 2119 | -9/Mines | Received a Mining Laser from a helpful Derelict 2153 | -9/Mines | Discovered new exit (range 5) 2248 | -9/Mines | Met a Derelict who couldn't figure out how to use a Trap Extractor 2535 | -9/Mines | Discovered new exit (range 14) 2609 | -9/Mines | Excavation squad dispatched 2609 | -9/Mines | A large section of the Mines collapsed 2746 | -9/Mines | Assisted by bots powering up and referring to "LRC-V3" 3136 | -9/Mines | Entered Exiles 3136 | -9/Exiles | Accompanied by 1 ally 3184 | -9/Exiles | Welcomed by 8R-AWN 3214 | -9/Exiles | Met EX-HEX 3348 | -9/Exiles | Met EX-DEC 3382 | -9/Exiles | Learned location of Zion (-6) 3422 | -9/Exiles | Met EX-BIN 3444 | -9/Exiles | Aligned with FarCom system 3446 | -9/Exiles | Given EX-Vault access code 3492 | -9/Exiles | Opened EX-Vault 3508 | -9/Exiles | Found Longsword +1 3549 | -9/Exiles | Warned to stay clear of 0b10 Research branches 3843 | -9/Exiles | Learned about 8R-AWN's background 3885 | -9/Exiles | Discovered new exit (range 14) 3908 | -9/Exiles | Left Exiles lab with Longsword +1 3908 | -9/Exiles | Entered Mines 4089 | -8/Mines | Discovered new exit (range 7) 4123 | -8/Mines | Entered Materials 4123 | -8/Materials | Evolved 2 slots: Utility x2 4961 | -8/Materials | Discovered new exit (range 13) 5244 | -8/Materials | Discovered new exit (range 14) 5778 | -8/Materials | Garrison activated, responded to threat 5795 | -8/Materials | Discovered new exit (range 13) 6179 | -8/Materials | Identified exit to Garrison 6179 | -8/Materials | Entered Garrison 6284 | -8/Garrison | Triggered checkpoint 6529 | -8/Garrison | Triggered checkpoint 7084 | -8/Garrison | Triggered checkpoint 7154 | -8/Garrison | Triggered checkpoint 7166 | -8/Garrison | Triggered checkpoint 7250 | -8/Garrison | Discovered new exit (range 14) 7411 | -8/Garrison | Triggered checkpoint 7497 | -8/Garrison | Discovered new exit (range 10) 7558 | -8/Garrison | Triggered checkpoint 7703 | -8/Garrison | Triggered checkpoint 7794 | -8/Garrison | Discovered new exit (range 8) 7822 | -8/Garrison | Installed Relay Interface Framework 7891 | -8/Garrison | Triggered checkpoint 7960 | -8/Garrison | Garrison Relay disabled 8248 | -8/Garrison | Garrison Relay disabled 8397 | -8/Garrison | Garrison Relay disabled 8474 | -8/Garrison | Garrison Relay disabled 8555 | -8/Garrison | Build established: Bothacker-Mutant 8702 | -8/Garrison | Garrison Relay disabled 8881 | -8/Garrison | Entered Materials 8966 | -8/Materials | Crushed by falling debris 9908 | -8/Materials | Identified exit to Garrison 9908 | -8/Materials | Entered Garrison 9958 | -8/Garrison | Triggered checkpoint 10161 | -8/Garrison | Garrison Relay disabled 10222 | -8/Garrison | Triggered checkpoint 10294 | -8/Garrison | Garrison Relay disabled 10375 | -8/Garrison | Triggered checkpoint 10419 | -8/Garrison | Spotted B-75 Beast 10421 | -8/Garrison | Spotted B-75 Beast 10502 | -8/Garrison | Core integrity fell below 50% 10510 | -8/Garrison | Destroyed B-75 Beast 10550 | -8/Garrison | Destroyed B-75 Beast 10567 | -8/Garrison | Lost 6 parts (3n3w) 10812 | -8/Garrison | Discovered new exit (range 12) 10893 | -8/Garrison | Triggered checkpoint 10982 | -8/Garrison | Discovered new exit (range 12) 11018 | -8/Garrison | Expanded RIF knowledge: Structural Interface 11025 | -8/Garrison | Entered Factory 11025 | -7/Factory | Evolved 2 slots: Utility x2 12605 | -7/Factory | Garrison activated, responded to threat 13744 | -7/Factory | Fabricated Cmb. Airjet? 13807 | -7/Factory | Local fabrication network quarantined 13845 | -7/Factory | Fabricated Cmb. Airjet? 14149 | -7/Factory | Garrison activated, responded to threat 14179 | -7/Factory | Lost 5 parts (1p3n1w) 14358 | -7/Factory | Build established: Hacker-Mutant 14625 | -7/Factory | First assault squad dispatched 14992 | -7/Factory | System corruption reached 10% 15058 | -7/Factory | Identified exit to Lower Caves 15196 | -7/Factory | Entered Lower Caves 15373 | -7/Lower Caves | Spotted B-75 Beast 15498 | -7/Lower Caves | Discovered new exit (range 12) 15506 | -7/Lower Caves | Entered another Lower Caves area 15603 | -7/Lower Caves | Learned Factory stockpile data 15611 | -7/Lower Caves | Spotted B-75 Beast 15675 | -7/Lower Caves | Encountered a Warlord checkpoint 15695 | -7/Lower Caves | Discovered new exit (range 16) 15719 | -7/Lower Caves | Entered Data Miner 15719 | -7/Data Miner | Discovered new exit (range 6) 15725 | -7/Data Miner | Data Conduit disabled 15757 | -7/Data Miner | Core integrity fell below 50% 15776 | -7/Data Miner | Core integrity fell below 20% 15783 | -7/Data Miner | Destroyed by Enhanced Grunt with Neutron Cannon Last Messages --------------- 15746_ Lyr. Medium Armor Plating destroyed. 15748_ Enhanced Grunt destroyed. 15750_ Acquired 34 matter. 15752_ Discarded Mak. System Shield. 15753_ JA,KYMJCKJAAG,EOZN AP MYVI 15753_ Acquired 10 matter. 15756_ Lyr. Medium Armor Plating destroyed. 15759_ Cmb. Airjet destroyed. 15760_ Acquired Antimatter Reactor. 15760_ Cmb. Airjet destroyed. 15765_ Microactuators destroyed. 15767_ Enhanced Grunt Antimatter Reactor severed. 15767_ Antimatter Reactor destroyed. 15769_ Enhanced Grunt destroyed. 15769_ Imp. Medium Armor Plating destroyed. 15771_ Acquired Neutron Cannon. 15771_ Neutron Cannon destroyed. 15772_ 4GGW,X,FIQU7IACDEW7XOGOC 15775_ Acquired Antimatter Reactor. 15776_ Cmb. Airjet destroyed. Map ----- +----------------------------------------------------+ | | | | | | | | | | | | | | | | | | | | | | | | | | | | | | | | | ???????##?#???#???#??#?#?#?????#?##??#?## | | ????#??#??????##??#???#??????#???#??##??# | | ??????????#??????##??##????#??#???#?????? | | ??????##??#???#????###??#??#???##????#??# | | ????#??????#??????##??###??###;###?##??#? | | ???????#?###???##???#######;; ; #??##??? | | ??????????"?##?#????# # #;; #?##????#? | | ??"??????"""""""# # # ; #! < ;#????????? | | ????????? = %! ######??#? | | ??????? ? = @!g ##?## | | ??????? !%![ ###?? | | ???????? ! g #???? | | ????? ??? ##?#?? | | ????? ?? """""""" "#####??#?? | | ??????? ? ? """"###### ##?#?####?# | | ???? ? ?? ???"?##????### ## #?#???????? | | ????? ? ?"##?##??#?#??########???#??#??# | | ??????????"?#?????#??????#???#????##????# | | ???????? "???##???#???#???#???#????????# | | ??????#?? "?#?????#???#????#???????#?#??# | | ????????????#????#?##???##??#??#??###??#? | | ?????? ? ???????#?????##?#?????#???????? | | ???????????#?????#?#??##?##??##???####?## | | ??????????????#??###???#?????#???#?##??#? | | ??????????????????#?##?????#?##?????#???# | | ???????????"??#??#?##???#????#????#??#??# | | ??????????????????#??#??#?#????#?#??#???# | | ???????????????#???##?????????#??????###? | | ????????????#?#?????##?#?????#??????????? | | ????????????????????????????###?#???????? | | ???????????????#????#??####???##???????#? | | ????????????????#????#??????##?#???#?#??? | | ??????????????????????#??????###????????# | | ?????????????????????????#??#????????#??? | +----------------------------------------------------+ Best States ------------- Heat Dissipation 48 Energy Generation 21 Energy Capacity 325 Matter Stores 300 Matter Capacity 300 Sight Range 16 Terrain Scan Range 24 Terrain Scan Density 210 Armor Coverage 675 Resistance: KI 20 Melee Speed Boost 20 Evasion (%) 50 Melee Accuracy 6 Recoil Reduction 3 Offensive Hacking 20 Defensive Hacking 11 Relay Coupler Types 29 Relay Coupler Value 1 Item Schematics ----------------- Hacking Suite | -9/Materials | Scanalyzed Hrd. Medium Armor Plating | -9/Materials | Scanalyzed System Shield | -8/Materials | Hacked Cmb. Airjet | -7/Factory | Hacked Robot Schematics ------------------ None Fabricated ------------ Cmb. Airjet | x2 | -7/Factory Cmb. Airjet | x2 | -7/Factory Alien Tech Used ----------------- None Achievements -------------- None Challenges ------------ None Game ------ Seed LongswordSmartbombPropulsion Manual? 0 Play Time 02:18:03 Cumulative 55.7 hours Start 2020.11.04 @ 16:03:01 End 2020.11.04 @ 19:11:26 Sessions 1 Manual Loads 0 Difficulty Rogue Special Mode Halloween2020/ForbiddenLore Game No. 39 Rogue 39 Adventurer 0 Explorer 0 Win Type - Total 0 Types 0/0/0/0/0/0/0/0/0 Lore% 21 Gallery% 36 Achievement% 30 Wizard Run 0 Options --------- ASCII 1 Keyboard 1 Movement Vi Keybinds 0 Fullscreen 1 Font 16/Terminus Map View 75x55 Tactical HUD 1 Map Filters NONE Filters NONE Steam 1 RUN: 46a46eef-7707-4bfc-888f-558b65d88984